bitfinex/quotes_ETHUSD_20260113
["timestamp","ask_amount","ask_price","bid_price","bid_amount"]
[1768316405448,6.61761546,3140.4,3138.7,0.00080512]
[1768316405648,0.00080512,3139.1,3138.0,0.00080441]
[1768316405989,0.00080512,3139.1,3138.0,3.18745383]
[1768316406147,0.249,3139.0,3138.0,3.18745383]
[1768316406342,0.00080512,3139.1,3138.0,4.18202656]
[1768316406545,1.17856312,3140.1,3138.7,0.0008052]
[1768316406750,0.92956312,3140.0,3138.7,0.0008052]
[1768316406978,0.249,3139.9,3138.7,0.0008052]
[1768316407163,3.18430773,3140.4,3138.7,0.0008052]
[1768316407164,0.92956312,3140.4,3138.7,0.99537793]
[1768316407476,0.92956312,3140.4,3138.8,0.99457273]
[1768316407682,0.249,3140.3,3138.8,0.99457273]
[1768316407911,0.92956312,3140.6,3138.7,0.0008052]
[1768316408119,0.00080504,3140.7,3138.0,0.00080441]
[1768316408120,0.92956312,3140.1,3138.0,0.00080441]
[1768316408263,0.0008052,3139.1,3138.0,0.00080441]
[1768316408585,0.249,3139.0,3138.3,3.18641795]
[1768316408793,0.249,3139.0,3138.0,0.00080441]
[1768316408987,0.93036832,3139.1,3138.5,3.18621452]
[1768316409189,0.249,3139.0,3138.0,0.00080441]
[1768316409565,0.93036832,3139.1,3138.0,0.00080441]
[1768316409767,1.17936832,3139.1,3138.0,0.00080441]
[1768316409967,0.0008052,3139.1,3138.0,0.99537714]
[1768316410170,0.0008052,3139.1,3138.3,0.002]
[1768316410992,0.93036832,3139.1,3138.3,0.002]
[1768316411899,0.92956312,3139.0,3138.3,0.002]
[1768316412576,0.92956312,3139.0,3138.0,0.00280441]
[1768316412772,0.92956312,3139.0,3137.6,4.43996884]
[1768316412971,0.92956312,3139.0,3137.6,1.25282214]
[1768316413176,0.92956312,3138.6,3137.6,4.43995969]
[1768316413374,0.92956312,3138.5,3137.6,7.6271091]
[1768316413595,0.249,3138.4,3137.6,7.6271091]
[1768316413858,0.92956312,3138.9,3137.6,7.6271091]
[1768316414006,0.92956312,3138.9,3137.6,10.81425851]
[1768316414299,0.0008052,3139.1,3137.7,0.99457273]
[1768316414533,0.0008052,3139.1,3137.9,0.99457273]
[1768316414670,0.0008052,3139.1,3138.0,0.99457273]
[1768316414866,0.0008052,3139.1,3137.6,11.80883124]
[1768316414867,0.93036832,3139.1,3137.6,11.80883124]
[1768316415097,0.00080441,3139.7,3137.8,12.74778504]
[1768316415283,0.25,3139.6,3138.7,0.00080528]
[1768316415601,0.00080441,3139.7,3138.7,0.00080528]
[1768316416392,0.00080441,3139.7,3138.7,0.92054927]
[1768316416796,0.00080441,3139.7,3138.7,1.16954927]
[1768316417103,0.00080441,3139.7,3138.7,0.00080528]
[1768316417309,0.00080441,3139.7,3138.8,0.91974399]
[1768316417509,0.00080441,3139.7,3139.0,0.91974399]
[1768316417708,0.94268545,3140.6,3139.0,0.91974399]
[1768316417709,3.43429029,3140.5,3139.0,0.91974399]
[1768316417926,0.25,3140.5,3139.0,0.91974399]
[1768316419023,7.31089627,3140.6,3139.0,1.16874399]
[1768316419024,4.12679039,3140.6,3139.0,1.16874399]
[1768316419193,0.25080504,3140.7,3139.3,0.91974399]
[1768316419516,0.25080504,3140.7,3139.4,0.91974399]
[1768316420191,0.00080504,3140.7,3139.4,0.91974399]
[1768316421009,3.18343014,3141.3,3140.2,0.91974399]
[1768316421188,0.31834301,3141.2,3140.3,6.36962338]
[1768316421608,0.94268545,3141.7,3140.3,6.36962338]
[1768316421806,0.94268545,3142.1,3140.4,0.91974399]
[1768316422008,0.94268545,3142.1,3140.6,0.91974399]
[1768316422230,0.00080608,3142.3,3140.6,0.91974399]
[1768316422411,3.18248549,3142.2,3140.6,0.91974399]
[1768316422740,3.43321895,3142.3,3140.6,0.91974399]
[1768316422930,0.00080608,3142.3,3141.0,0.91974399]
[1768316423131,0.00080608,3142.3,3141.3,3.1833954]
[1768316423431,0.94349153,3142.3,3140.9,0.249]
[1768316423630,0.94349153,3142.3,3141.2,3.18342411]
[1768316425004,0.94349153,3142.3,3140.4,3.18430735]
[1768316425205,0.94268545,3142.1,3140.3,0.00080512]
[1768316425429,0.94268545,3141.9,3140.3,0.00080512]
[1768316427243,0.94268545,3141.7,3140.3,0.00080512]
[1768316429244,0.94268545,3141.5,3140.3,0.00080512]
[1768316430260,1.04901363,3142.0,3140.3,0.92054911]
[1768316430437,3.18258489,3142.1,3140.5,0.91974399]
[1768316430644,0.00080608,3142.3,3140.5,0.91974399]
[1768316430838,3.18320352,3142.3,3140.6,0.91974399]
[1768316431061,3.18320352,3142.3,3140.8,0.91974399]
[1768316431230,3.18258489,3142.1,3141.0,0.91974399]
[1768316431557,6.36516978,3142.1,3141.0,0.91974399]
[1768316431726,3.18258489,3142.1,3141.0,0.91974399]
[1768316431926,0.34322035,3142.2,3141.0,0.91974399]
[1768316432163,3.18250713,3142.2,3141.0,0.91974399]
[1768316432565,6.36501426,3142.2,3141.0,0.91974399]
[1768316432735,6.36501426,3142.2,3140.9,6.36760164]
[1768316433265,0.00080608,3142.3,3140.8,0.91974399]
[1768316433652,0.00080608,3142.3,3140.9,0.91974399]
[1768316433858,0.00080608,3142.3,3141.1,0.91974399]
[1768316434059,0.94268545,3143.1,3140.7,15.91997254]
[1768316434060,3.18161663,3143.1,3141.9,0.00080616]
[1768316434234,0.00081169,3143.3,3141.9,0.92055015]
[1768316434235,3.18224453,3143.3,3141.9,0.92055015]
[1768316434562,6.36398194,3143.2,3141.9,0.92055015]
[1768316435256,0.001,3143.2,3142.0,3.18268618]
[1768316435568,0.96998351,3143.1,3141.9,0.00080616]
[1768316435863,0.63743491,3143.2,3141.9,3.18355392]
[1768316436252,0.63743491,3143.2,3141.9,3.18359025]
[1768316436646,0.63743491,3143.2,3141.9,6.36637773]
[1768316437068,0.63743491,3143.2,3141.9,3.18359025]
[1768316437237,6.36314466,3143.1,3141.9,0.00080616]
[1768316437438,1.01821022,3143.0,3141.9,0.00080616]
[1768316437640,1.21898351,3142.9,3141.9,0.00080616]
[1768316437970,0.96998351,3142.8,3141.9,0.00080616]
[1768316439450,6.36395456,3142.7,3141.9,0.00080616]
[1768316439669,3.18197728,3142.7,3141.9,0.00080616]
[1768316439982,1.01821022,3143.0,3141.9,0.00080616]
[1768316440218,6.36340424,3143.0,3141.9,1.00198269]
[1768316440469,3.18170212,3143.0,3141.9,1.00198269]
[1768316440673,3.18160711,3143.1,3141.9,1.00198269]
[1768316440871,6.36321422,3143.1,3141.9,1.00198269]
[1768316441438,9.54482133,3143.1,3141.9,0.00080616]
[1768316441638,0.66132142,3143.0,3141.9,3.1835631]
[1768316441851,1.63130493,3143.0,3141.9,0.00080616]
[1768316442281,0.96998351,3142.9,3141.9,0.00080616]
[1768316443045,0.249,3142.8,3141.9,0.00080616]
[1768316443675,6.36395456,3142.7,3141.9,0.00080616]
[1768316443871,0.66129546,3142.6,3141.9,0.00080616]
[1768316444239,1.63127897,3142.6,3141.9,0.00080616]
[1768316444855,0.97078967,3142.3,3140.6,0.002]
[1768316445079,0.249,3142.2,3140.6,1.00317653]
[1768316445586,6.36516978,3142.1,3140.8,1.00117653]
[1768316446080,3.18251466,3142.2,3140.8,1.00117653]
[1768316446246,3.43151466,3142.2,3140.8,1.00117653]
[1768316446646,0.249,3142.2,3140.8,1.00117653]
[1768316446847,0.00080616,3142.3,3141.1,1.00117653]
[1768316447068,0.00080616,3142.3,3141.0,6.17116516]
[1768316447069,0.00080616,3142.3,3141.3,1.00117653]
[1768316447246,3.18319834,3142.3,3141.3,1.00117653]
[1768316447454,0.00080616,3142.3,3141.4,3.18329407]
[1768316448474,0.00080616,3142.3,3141.3,4.18454191]
[1768316448702,0.00080616,3142.3,3140.6,0.002]
[1768316448703,0.00080616,3142.3,3140.9,1.00117653]
[1768316448845,0.00080616,3142.3,3141.4,1.00117653]
[1768316449658,0.00080616,3142.3,3141.6,1.00117653]
[1768316449879,3.43082077,3142.9,3141.8,1.00117653]
[1768316450091,0.001,3143.2,3141.9,1.00198277]
[1768316450092,3.18157233,3143.1,3141.9,1.00198277]
[1768316450259,0.001,3142.9,3141.9,1.00198277]
[1768316451196,0.001,3143.2,3142.5,1.00117653]
[1768316451372,9.51109747,3144.8,3141.9,0.00080624]
[1768316451373,3.1806161,3144.1,3142.8,1.00117653]
[1768316451601,0.96998351,3144.2,3142.9,6.36354958]
[1768316451602,3.59580124,3144.0,3142.9,6.36354958]
[1768316451800,0.96998351,3144.2,3142.9,6.36354958]
[1768316451998,0.96998351,3144.2,3142.1,1.25017653]
[1768316452203,0.96998351,3144.2,3142.7,3.18195857]
[1768316452395,0.96998351,3144.2,3142.2,3.18240902]
[1768316452396,0.96998351,3144.2,3142.0,1.00117653]
[1768316452731,0.96998351,3144.1,3142.4,1.00117653]
[1768316452892,0.96998351,3144.1,3142.8,3.18187413]
[1768316453235,0.249,3144.0,3142.8,3.18187413]
[1768316453390,0.249,3144.1,3142.9,1.00117653]
[1768316453593,6.36132314,3144.0,3143.0,3.18167356]
[1768316454221,3.18066157,3144.0,3143.0,7.36452365]
[1768316454597,3.18066157,3144.0,3143.0,4.18285009]
[1768316454801,6.36132314,3144.0,3143.0,7.36452365]
[1768316455001,0.66103231,3143.9,3143.0,7.36452365]
[1768316455330,6.36132314,3144.0,3143.0,1.00117653]
[1768316455732,6.3610756,3144.2,3143.0,4.18277404]
[1768316456033,6.3610756,3144.2,3143.0,7.3644476]
[1768316456422,3.1805378,3144.2,3143.1,1.00117653]
[1768316456609,3.1805378,3144.2,3143.3,1.00117653]
[1768316457115,3.18015582,3144.5,3143.3,1.00117653]
[1768316457297,0.001,3144.6,3143.3,1.25017653]
[1768316457702,0.001,3144.6,3143.5,1.00117653]
[1768316459080,0.001,3144.6,3143.4,22.34727976]
[1768316459081,0.001,3144.6,3143.7,1.00117653]
[1768316459359,0.001,3144.6,3143.9,1.00117653]
[1768316459561,0.001,3144.6,3143.9,1.25017653]
[1768316459760,0.001,3144.6,3144.0,3.18066157]
[1768316459932,0.001,3144.6,3143.9,1.25017653]
[1768316459933,0.001,3144.6,3143.9,3.42972835]
[1768316460335,0.001,3144.6,3143.6,3.18103976]
[1768316460533,0.001,3144.6,3143.4,3.18125882]
[1768316460733,0.001,3144.6,3143.1,1.25017653]
[1768316460931,0.001,3144.6,3143.5,3.18113401]
[1768316461230,0.97098351,3144.6,3143.4,3.18118544]
[1768316461457,0.97098351,3144.6,3143.5,3.18116645]
[1768316461666,3.18015582,3144.5,3143.1,1.25017653]
[1768316461959,6.3611944,3144.6,3143.3,1.00117653]
[1768316462159,9.5412916,3144.6,3143.3,1.00117653]
[1768316462340,6.3611944,3144.6,3143.3,1.00117653]
[1768316462541,0.63611944,3144.5,3143.3,1.00117653]
[1768316462728,0.63611944,3144.5,3143.2,3.18147111]
[1768316463063,0.63611944,3144.5,3143.1,3.43054958]
[1768316463371,0.63611944,3144.5,3143.2,1.00117653]
[1768316463728,0.63611944,3144.5,3143.3,3.18136989]
[1768316463729,6.36051392,3144.4,3143.3,3.18136989]
[1768316463972,0.69966334,3144.3,3143.3,3.18136989]
[1768316464471,0.001,3144.2,3143.3,3.18136989]
[1768316464648,0.001,3144.2,3143.4,1.00117653]
[1768316464852,0.9414313,3144.2,3143.1,0.002]
[1768316465270,0.9404313,3144.0,3143.1,0.002]
[1768316465784,9.54228822,3143.9,3142.8,1e-08]
[1768316465986,9.54228822,3143.9,3141.9,0.00080624]
[1768316465987,0.9404313,3143.7,3142.0,3.18262923]
[1768316466140,0.9404313,3143.7,3141.9,0.00080624]
[1768316466339,0.9404313,3143.7,3141.9,3.18355771]
[1768316466558,0.9404313,3143.7,3141.9,0.00080624]
[1768316467189,0.9404313,3143.5,3141.9,0.00080624]
[1768316467500,0.9404313,3143.3,3141.9,0.00080624]
[1768316467788,0.9404313,3143.1,3141.9,0.00080624]
[1768316469962,0.9404313,3142.9,3141.9,0.00080624]
[1768316470163,12.72669424,3143.0,3141.9,0.00080624]
[1768316470164,0.9404313,3142.7,3141.9,0.00080624]
[1768316471899,6.36415706,3142.6,3141.9,0.00080624]
[1768316472201,6.61315706,3142.6,3141.9,0.00080624]
[1768316472358,3.43107853,3142.6,3141.9,0.00080624]
[1768316472998,0.9404313,3142.5,3141.9,0.00080624]
[1768316474328,3.18228105,3142.4,3141.9,0.00080624]
[1768316474844,0.34310785,3142.6,3141.9,0.00080624]
[1768316475123,6.36294222,3143.2,3141.9,0.00080624]
[1768316475289,0.97933735,3143.1,3141.9,0.00080624]
[1768316476720,6.36334712,3143.0,3141.9,0.00080624]
[1768316477729,3.18157795,3143.1,3142.2,0.002]
[1768316478023,3.1814956,3143.2,3142.2,0.98266084]
[1768316478187,6.3629912,3143.2,3142.2,0.002]
[1768316479422,6.61177684,3143.3,3142.2,0.002]
[1768316480218,3.43038842,3143.3,3142.2,0.002]
[1768316480416,6.61177684,3143.3,3142.2,0.002]
[1768316482225,6.61177684,3143.3,3142.2,0.98266084]
[1768316482629,7.61428178,3143.3,3142.2,0.002]
[1768316483731,1.00250494,3143.2,3142.2,0.002]
[1768316484302,9.79316526,3143.3,3142.2,0.002]
[1768316484303,0.249,3143.1,3142.2,0.002]
[1768316484520,0.66117768,3143.1,3142.2,0.002]
[1768316484720,0.249,3143.0,3142.2,0.002]
[1768316484922,0.66117768,3143.1,3142.2,0.002]
[1768316485126,6.61177684,3143.3,3142.2,0.002]
[1768316485998,1.00250494,3143.2,3142.2,0.002]
[1768316487632,3.18157233,3143.1,3142.2,0.002]
[1768316487996,0.001,3143.4,3142.2,0.002]
[1768316488203,3.43036989,3143.3,3142.2,0.98266084]
[1768316488917,6.61173978,3143.3,3142.2,0.002]
[1768316489168,1.00250494,3143.1,3142.2,0.002]
[1768316490169,4.1841785,3143.0,3142.2,0.002]
[1768316490366,3.43067356,3143.0,3142.2,0.002]
[1768316490543,3.18167356,3143.0,3142.2,0.002]
[1768316490866,0.249,3142.9,3142.5,0.002]
[1768316492338,0.001,3143.0,3142.5,0.002]
[1768316493749,0.001,3143.4,3142.5,0.98266084]
[1768316493949,3.18152275,3144.2,3142.9,0.98066084]
[1768316494308,3.59992552,3144.2,3143.1,0.98066084]
[1768316494579,0.001,3144.2,3143.1,0.98066084]
[1768316495378,3.18148862,3144.2,3143.1,0.98066084]
[1768316495581,0.001,3144.2,3143.2,0.92800576]
[1768316495950,3.18154758,3144.2,3143.0,9.54502068]
[1768316496151,7.32882868,3144.2,3143.0,6.36334712]
[1768316496400,7.32882868,3144.2,3142.8,0.249]
[1768316497174,7.57782868,3144.2,3142.8,0.249]
[1768316497375,8.33561155,3144.2,3142.8,0.249]
[1768316497602,0.96673352,3144.1,3142.8,0.249]
[1768316497821,0.96673352,3144.1,3142.6,3.18198143]
[1768316497959,0.96673352,3144.1,3142.6,3.18206951]
[1768316498393,0.96673352,3143.9,3142.5,0.002]
[1768316498705,0.96673352,3143.5,3142.2,1e-08]
[1768316498853,0.96673352,3143.5,3141.9,0.00280624]
[1768316498854,0.96673352,3143.3,3141.9,0.00280624]
[1768316499057,0.96673352,3143.1,3141.9,0.00280624]
[1768316500596,0.249,3143.4,3141.4,1e-08]
[1768316500597,0.96673352,3142.7,3141.4,1e-08]
[1768316500797,0.96673352,3142.2,3140.3,0.00280512]
[1768316500959,0.96673352,3142.1,3140.4,3.18424494]
[1768316501160,0.96673352,3141.9,3140.5,3.18419234]
[1768316501466,0.96673352,3141.9,3140.7,3.18395445]
[1768316501670,0.249,3141.8,3140.7,3.18395445]
[1768316502257,0.249,3141.8,3140.7,6.36795801]
[1768316502517,3.18309141,3141.6,3140.6,0.002]
[1768316502662,0.96673352,3141.5,3140.6,0.002]
[1768316504678,0.96673352,3141.3,3140.6,0.002]
[1768316504873,1.32556157,3141.2,3140.6,0.002]
[1768316505094,0.96673352,3141.1,3140.6,0.002]
[1768316506265,0.96673352,3141.1,3140.9,0.002]
[1768316506565,0.96673352,3140.9,3140.1,0.00280605]
[1768316506759,0.00080512,3140.7,3140.1,0.00280605]
[1768316506977,0.00080512,3140.7,3140.5,0.002]
[1768316507300,0.00080512,3140.7,3140.1,0.00280605]
[1768316507502,0.96673352,3140.6,3140.1,0.00280605]
[1768316507666,0.96673352,3140.6,3139.3,0.002]
[1768316508776,6.36841266,3140.5,3139.3,0.002]
[1768316508982,0.73351462,3140.4,3139.3,0.002]
[1768316509473,0.96673352,3140.4,3139.3,0.002]
[1768316511009,7.33555178,3140.3,3139.3,0.002]
[1768316511968,0.249,3140.2,3139.3,0.002]
[1768316512907,0.96673352,3140.1,3139.3,0.002]
[1768316513212,3.18471337,3140.0,3139.3,0.002]
[1768316513421,0.41514469,3139.9,3139.3,0.002]
[1768316513618,0.249,3140.0,3139.3,0.002]
[1768316514106,3.18464827,3140.1,3139.3,0.002]
[1768316514325,0.249,3140.1,3139.3,0.002]
[1768316514496,4.15104125,3140.4,3139.3,0.002]
[1768316514698,0.66410412,3140.3,3139.3,0.002]
[1768316514997,3.18451054,3140.2,3139.3,0.002]
[1768316515644,3.59955864,3140.3,3139.3,0.002]
[1768316515846,0.249,3140.2,3139.3,0.002]
[1768316516846,0.96753864,3140.7,3139.3,0.93000576]
[1768316517145,0.00080512,3140.7,3139.5,0.92800576]
[1768316517295,3.18482041,3140.7,3139.5,0.92800576]
[1768316517644,0.00080512,3140.7,3139.5,0.92800576]
[1768316518992,0.00080512,3140.7,3139.7,0.92800576]
[1768316519236,0.96673352,3141.7,3140.2,0.92800576]
[1768316519564,0.96673352,3141.5,3140.3,0.0008052]
[1768316520187,1.21673352,3141.5,3140.3,0.0008052]
[1768316520673,0.96673352,3141.4,3140.3,0.0008052]
[1768316521056,3.18329407,3141.4,3140.3,0.0008052]
[1768316521548,4.15002759,3141.4,3140.3,0.0008052]
[1768316521739,0.96673352,3141.3,3140.3,0.0008052]
[1768316522277,0.96673352,3140.6,3139.6,3.18709874]
[1768316522476,0.96673352,3140.6,3139.6,0.002]
[1768316522677,0.2508052,3140.7,3139.9,3.18475401]
[1768316522839,0.2508052,3140.7,3139.6,0.002]
[1768316522840,0.0008052,3140.7,3139.6,0.002]
[1768316523038,3.43414233,3140.6,3139.6,0.002]
[1768316523630,6.61828466,3140.6,3139.6,0.002]
[1768316523831,0.96673352,3140.5,3139.6,0.002]
[1768316524344,0.96673352,3140.5,3139.3,0.002]
[1768316524833,0.97257922,3140.3,3139.3,0.002]
[1768316525088,0.25952256,3140.4,3139.3,0.002]
[1768316525089,0.97257922,3140.1,3139.3,0.002]
[1768316525231,1.22257922,3140.0,3139.3,0.002]
[1768316525431,0.97257922,3139.9,3139.3,0.002]
[1768316527468,0.97257922,3140.3,3139.3,0.002]
[1768316527765,1.19971089,3140.3,3139.3,0.002]
[1768316527966,0.25,3140.2,3139.3,0.002]
[1768316528272,0.97257922,3140.1,3139.3,0.002]
[1768316529036,0.97257922,3139.7,3138.7,0.00080528]
[1768316529241,6.17189796,3139.8,3138.3,0.002]
[1768316529242,0.97257922,3139.5,3138.3,0.002]
[1768316529444,7.34403508,3139.0,3138.3,0.002]
[1768316529640,0.25,3138.9,3138.3,0.002]
[1768316529869,0.75940351,3138.8,3138.3,0.002]
[1768316530252,1.00940351,3138.8,3138.3,0.002]
[1768316530461,0.25,3138.8,3138.3,0.002]
[1768316531540,3.18603243,3138.7,3138.3,0.002]
[1768316531746,4.15861165,3138.7,3138.3,0.002]
[1768316532059,0.97257922,3138.6,3137.4,0.00080504]
[1768316532259,0.73446441,3138.5,3137.4,0.00080504]
[1768316532547,0.73446441,3138.5,3137.6,3.18708109]
[1768316532770,0.73446441,3138.5,3137.4,0.00080504]
[1768316532771,0.97257922,3138.4,3137.4,0.00080504]
[1768316532943,1.22257922,3138.3,3137.4,0.00080504]
[1768316533877,6.3730801,3138.2,3137.4,0.00080504]
[1768316534044,0.75956593,3138.1,3137.4,0.00080504]
[1768316534369,0.25,3138.3,3137.4,0.00080504]
[1768316534370,0.00080528,3139.1,3137.7,0.9726615]
[1768316534568,3.43644438,3139.1,3137.7,0.9726615]
[1768316534773,6.62208348,3139.1,3137.7,0.9726615]
[1768316534947,0.97257922,3138.9,3137.4,0.00080504]
[1768316535675,0.25,3138.8,3137.4,0.99477904]
[1768316535884,3.18644438,3139.1,3137.4,0.99477904]
[1768316535885,0.25,3138.7,3137.4,0.99477904]
[1768316536739,0.00080528,3139.1,3137.7,0.993974]
[1768316536938,0.25,3139.0,3137.7,0.993974]
[1768316537164,0.001,3139.6,3137.9,0.993974]
[1768316537364,3.1861895,3139.6,3138.7,0.00080536]
[1768316537639,3.43522711,3139.5,3138.7,0.00080536]
[1768316538248,3.18613512,3139.6,3138.7,0.00080536]
[1768316538470,0.25,3139.5,3138.7,0.00080536]
[1768316539473,0.91220693,3139.5,3138.7,0.00080536]
[1768316539672,0.001,3139.6,3138.7,0.99477936]
[1768316539972,0.98975738,3139.6,3138.8,3.18593092]
[1768316540169,0.98975738,3139.6,3138.7,0.00080536]
[1768316540773,0.98956274,3139.1,3138.4,3.18628124]
[1768316540952,0.25,3139.0,3138.2,3.18651663]
[1768316541275,0.98875738,3138.9,3137.8,0.7165872]
[1768316541461,1.21150886,3138.8,3137.4,0.00080504]
[1768316541663,1.21150886,3138.8,3137.5,3.18716163]
[1768316541886,6.17189796,3138.0,3136.2,0.00080408]
[1768316542186,0.98875738,3137.7,3136.2,0.00080408]
[1768316542546,0.98875738,3136.8,3134.7,0.16664261]
[1768316542744,0.98956306,3136.0,3134.8,3.18999617]
[1768316542978,0.25,3135.9,3134.9,0.33566388]
[1768316543383,0.98956306,3136.0,3134.9,0.33566388]
[1768316543567,0.25,3135.9,3134.9,0.33566388]
[1768316545080,0.00080568,3136.0,3134.9,6.37977159]
[1768316545401,0.00080568,3136.0,3134.9,3.18983395]
[1768316545545,3.18958947,3136.0,3134.9,3.18983395]
[1768316545744,0.34395895,3135.9,3134.9,3.18983395]
[1768316545962,3.53283938,3135.9,3134.7,0.0008064]
[1768316546185,0.34395895,3135.9,3134.7,0.0008064]
[1768316546558,3.53284163,3135.9,3134.7,0.0008064]
[1768316546885,0.34395895,3135.9,3134.7,0.0008064]
[1768316547091,0.98956306,3136.0,3134.7,0.0008064]
[1768316547380,0.25,3136.2,3135.6,0.00080576]
[1768316548458,0.00080408,3136.6,3135.6,0.00080576]
[1768316548654,0.25,3136.5,3135.6,0.00080576]
[1768316548859,0.98875738,3136.4,3135.6,0.00080576]
[1768316549872,3.18887719,3135.9,3134.7,0.0008064]
[1768316550074,0.66784403,3135.8,3134.7,0.0008064]
[1768316550479,0.98875738,3134.9,3133.2,3.35161184]
[1768316550675,0.98875738,3134.4,3133.3,3.19145]
[1768316550874,0.98875738,3134.4,3133.1,3.19169634]
[1768316551176,0.25,3134.3,3133.1,0.63836153]
[1768316551486,0.25,3134.3,3132.7,4.22890161]
[1768316551675,0.25,3134.3,3133.8,3.19098376]
[1768316551874,0.25,3134.3,3132.9,3.19193079]
[1768316552054,3.43999617,3134.8,3132.9,12.76772316]
[1768316552258,0.25,3134.8,3132.9,9.57579237]
[1768316552465,0.98875738,3134.6,3132.9,9.57579237]
[1768316553158,0.98875738,3134.6,3132.9,3.19193079]
[1768316553350,0.98875738,3134.1,3132.7,1.03681295]
[1768316553554,0.98875738,3133.9,3132.7,1.03681295]
[1768316553754,0.98875738,3133.9,3132.8,3.19199332]
[1768316554068,0.98875738,3133.9,3132.8,3.93408693]
[1768316554069,0.25,3133.8,3132.8,3.93408693]
[1768316554294,0.98875738,3133.7,3132.7,1.03681295]
[1768316554492,0.98875738,3133.5,3130.9,0.993974]
[1768316554656,0.98875738,3133.5,3132.0,3.19279755]
[1768316555007,0.25,3133.8,3130.3,4.19375428]
[1768316555008,0.98515026,3133.3,3130.3,4.19375428]
[1768316555294,12.77988368,3133.9,3128.9,0.65160279]
[1768316555295,0.98515026,3133.1,3131.8,3.19302154]
[1768316555609,0.25,3133.0,3131.9,3.19293457]
[1768316555758,0.25,3133.0,3132.0,3.19281637]
[1768316556096,0.25,3133.0,3131.2,9.58099131]
[1768316556097,3.4418321,3133.0,3131.2,9.58099131]
[1768316556382,7.61881446,3133.0,3131.2,6.63632754]
[1768316556565,1.74703171,3132.9,3131.3,0.66363275]
[1768316557205,0.98515026,3132.8,3131.3,0.66363275]
[1768316557866,0.76188145,3132.9,3131.2,3.19366377]
[1768316558052,6.38392882,3132.9,3131.2,3.19366377]
[1768316558261,3.44184829,3133.0,3131.2,0.249]
[1768316558800,0.98515026,3132.9,3131.0,3.19378446]
[1768316559000,0.98515026,3132.7,3131.3,0.002]
[1768316559662,0.98515026,3132.5,3131.3,0.002]
[1768316560005,0.98515026,3132.1,3131.3,0.002]
[1768316560157,1.72219411,3132.0,3131.3,0.002]
[1768316560620,0.98515026,3131.9,3130.4,0.00081411]
[1768316560793,0.98515026,3131.7,3130.4,0.00081411]
[1768316561176,0.25,3131.8,3130.4,0.00081411]
[1768316561177,0.98515026,3131.5,3130.4,0.00081411]
[1768316561983,0.98515026,3131.5,3130.4,6.38977397]
[1768316562317,4.91505549,3132.0,3130.4,7.05365137]
[1768316562504,4.91510412,3132.0,3130.4,10.2481313]
[1768316562682,8.10801413,3132.0,3130.4,7.05365137]
[1768316562887,0.73704385,3132.0,3130.4,10.2481313]
[1768316563106,0.25,3132.3,3130.4,10.2481313]
[1768316563107,3.1924403,3132.4,3130.4,13.44261123]
[1768316563288,3.1924403,3132.4,3130.4,14.44186317]
[1768316563603,3.1924403,3132.4,3130.5,0.249]
[1768316563805,3.1924403,3132.4,3130.4,20.61376113]
[1768316564017,3.19193079,3132.9,3130.7,0.99925194]
[1768316564198,0.41770811,3132.8,3131.0,6.17189796]
[1768316564498,0.41770811,3132.8,3131.1,0.249]
[1768316564697,0.41770811,3132.8,3130.8,1.53766461]
[1768316564698,0.41770811,3132.8,3131.2,0.249]
[1768316564890,0.41770811,3132.8,3131.3,0.249]
[1768316565720,0.41770811,3132.8,3130.8,1.53766461]
[1768316565888,0.41770811,3132.8,3130.9,0.9128774]
[1768316566084,0.98515026,3133.5,3131.3,7.1711499]
[1768316566439,0.98515026,3133.5,3131.4,0.99925194]
[1768316566621,6.38223186,3133.7,3131.8,6.17189796]
[1768316566829,6.38223186,3133.7,3131.8,7.1711499]
[1768316566830,3.19111593,3133.7,3131.8,7.1711499]
[1768316567118,3.19040326,3134.4,3131.9,0.99925194]
[1768316567320,3.19040326,3134.4,3132.1,0.99925194]
[1768316567321,0.98515026,3134.2,3132.1,0.99925194]
[1768316567507,0.98515026,3134.2,3132.0,0.53841267]
[1768316567707,0.98515026,3134.2,3132.1,0.99925194]
[1768316568020,0.41755535,3134.3,3132.4,13.76901314]
[1768316568230,6.3810715,3134.3,3132.5,0.249]
[1768316568430,9.57160725,3134.3,3132.4,10.57657284]
[1768316568633,9.57160725,3134.3,3132.5,0.249]
[1768316568801,9.57160725,3134.3,3132.4,10.57657284]
[1768316568997,0.95716072,3134.2,3132.5,0.9128774]
[1768316569203,0.98515026,3134.7,3132.8,0.99925194]
[1768316569446,0.0008064,3135.1,3133.2,7.1711499]
[1768316569644,0.0008064,3135.1,3133.7,6.17189796]
[1768316569845,0.0008064,3135.1,3133.8,0.249]
[1768316570046,0.0008064,3135.1,3133.2,6.17189796]
[1768316570047,0.0008064,3135.1,3134.0,6.17189796]
[1768316570215,0.0008064,3135.1,3134.1,0.53841267]
[1768316570414,0.0008064,3135.1,3134.2,0.249]
[1768316571028,0.0008064,3135.1,3133.4,9.57426435]
[1768316571228,0.0008064,3135.1,3133.5,0.99925194]
[1768316571647,0.0008064,3135.1,3133.6,1.24825194]
[1768316571946,0.0008064,3135.1,3133.8,6.17189796]
[1768316572114,0.0008064,3135.1,3133.9,10.18992664]
[1768316572519,0.001,3134.0,3133.9,3.80810208]
[1768316572730,0.0008064,3135.1,3133.9,10.43892664]
[1768316572927,0.0008064,3135.1,3133.9,7.24801436]
[1768316573151,0.0008064,3135.1,3133.9,10.43892664]
[1768316573336,0.0008064,3135.1,3134.0,0.58510027]
[1768316573520,0.0008064,3135.1,3134.0,0.83410027]
[1768316573906,0.0008064,3135.1,3134.1,0.249]
[1768316574107,0.0008064,3135.1,3134.2,6.3812137]
[1768316575310,0.00080482,3135.5,3134.3,0.99925194]
[1768316575659,0.00080482,3135.5,3134.7,0.00080648]
[1768316576236,0.00080482,3135.5,3134.8,0.249]
[1768316576906,0.00080482,3135.5,3134.7,0.00080648]
[1768316577513,0.00080482,3135.5,3134.8,0.249]
[1768316577925,0.00080482,3135.5,3134.9,0.249]
[1768316578544,0.00080482,3135.5,3134.7,0.00080648]
[1768316578759,0.00080482,3135.5,3134.8,0.249]
[1768316578760,0.98595508,3135.5,3134.8,0.249]
[1768316579052,0.98595508,3135.5,3134.7,0.00080648]
[1768316579234,0.98595508,3135.5,3134.8,0.249]
[1768316579670,0.00080648,3135.1,3134.7,0.249]
[1768316580365,0.00080648,3135.1,3134.0,0.99925194]
[1768316580672,0.00080648,3135.1,3134.1,0.66801557]
[1768316580864,0.00080648,3135.1,3134.4,3.19039934]